Cogmind - Beta 17 @@@ ROGUE MODE // 2026.07.16 @ 21:10:15 Player: pinbox Result: Self-destructed Performance ------------- Evolutions (4) 2000 Regions Visited (4) 800 Robots Destroyed (41) 205 Value Destroyed (1358) 1358 Prototype IDs (27) 540 Alien Tech Used (0) 0 Bonus (778) 778 TOTAL SCORE: 5681 Bonus ------- Registered with UFD 300 Met Optimus in HQ 500 Friendly Fire -22 Cogmind --------- Core Integrity 657/850 Matter 12/300 Energy 70/100 System Corruption 8% Temperature Cool (9) Movement Treading (240) Ox1 Location -6/Factory Parts ------- > --- POWER (1) -------- (None) > --- PROPULSION (4) --- Light Treads Improved Medium Treads > --- UTILITY (8) ------ Medium Storage Unit Improved Signal Interpreter Melee Analysis Suite Advanced Melee Analysis Suite Core Analyzer ECM Suite Improved Light Armor Plating > --- WEAPON (2) ------- Long-range Missile Launcher Katana > --- INVENTORY (10) --- Gravity Neutralizer Advanced Sensor Array Advanced Sensor Array Improved Terrain Scan Processor Experimental Terrain Scan Processor Power Bank Peak State ------------ > --- POWER ------------ Micro Nuclear Core > --- PROPULSION ------- Light Treads Improved Medium Treads > --- UTILITY ---------- Medium Storage Unit Advanced Sensor Array Advanced Signal Interpreter Seismic Detector Advanced Melee Analysis Suite Core Analyzer ECM Suite Hardened Light Armor Plating > --- WEAPON ----------- Katana > --- INVENTORY -------- Gravity Neutralizer Advanced Sensor Array Advanced Sensor Array Improved Signal Interpreter Improved Terrain Scan Processor Experimental Terrain Scan Processor Improved Light Armor Plating Power Bank Rocket Launcher [Rating: 41] Favorites ----------- Power Ion Engine Engine Ion Engine Power Core Micro Nuclear Core Propulsion Light Treads Treads Light Treads Wheel Armored Wheel Utility Seismic Detector Device Seismic Detector Storage Large Storage Unit Processor Advanced Signal Interpreter Protection Hardened Light Armor Plating Weapon Heavy Assault Rifle Energy Gun Medium Laser Ballistic Gun Heavy Assault Rifle Launcher Rocket Launcher Impact Weapon Mace Slashing Weapon Katana Build | -11 -10 -10 -8 -6 ------- Run | Yrd Mat Sub Scr Fac Slots Evolved 8 | . . . . 8 Power . | . . . . . Propulsion 2 | . . . . 2 Utility 6 | . . . . 6 Weapon . | . . . . . Parts Attached 43 | 7 4 8 8 16 Power 5 | 1 . 1 1 2 Engine 3 | 1 . 1 1 . Core 2 | . . . . 2 Reactor . | . . . . . Propulsion 9 | 2 . 3 2 2 Treads 5 | 2 . 1 . 2 Leg . | . . . . . Wheel 4 | . . 2 2 . Hover . | . . . . . Flight . | . . . . . Utility 17 | 2 2 . 3 10 Device 5 | 1 . . 1 3 Storage 3 | 1 1 . 1 . Processor 5 | . . . . 5 Hackware . | . . . . . Protection 4 | . 1 . 1 2 Artifact . | . . . . . Weapon 12 | 2 2 4 2 2 Energy Gun 2 | 2 . . . . Energy Cannon . | . . . . . Ballistic Gun 5 | . 2 3 . . Ballistic Cannon . | . . . . . Launcher 3 | . . 1 . 2 Special Weapon . | . . . . . Impact Weapon 1 | . . . 1 . Slashing Weapon 1 | . . . 1 . Piercing Weapon . | . . . . . Special Melee Weapon . | . . . . . Unidentified Prototypes 1 | . . . . 1 Parts Lost 16 | . . 5 . 11 Power 4 | . . 1 . 3 Propulsion 2 | . . 1 . 1 Utility 7 | . . 1 . 6 Weapon 3 | . . 2 . 1 Highest Loss Streak 3 | . . 3 . 3 To Critical Strikes . | . . . . . Average Backups 6 | . 4 8 6 8 Power . | . 1 1 . . Propulsion . | . . . . . Utility 4 | . 1 3 4 7 Weapon 1 | . 2 3 . 1 Tool/Special . | . . . . . Unused Backups 16 | . 1 1 8 6 Power 2 | . . . 2 . Propulsion 1 | . . . . 1 Utility 9 | . 1 1 2 5 Weapon 3 | . . . 3 . Tool/Special 1 | . . . 1 . Average Slot Usage (%) 80 | . 98 99 68 69 Engine 11 | . 14 13 14 1 Treads 10 | . 27 21 . 7 Wheel 5 | . . 6 9 1 Device 14 | . 12 12 13 20 Storage 12 | . 14 14 14 6 Processor 2 | . . . . 13 Protection 1 | . 1 . . 5 Ballistic Gun 11 | . 23 27 2 . Impact Weapon 3 | . . . 8 . Slashing Weapon 2 | . . . 3 6 Peak Build Rating 41 | 7 9 14 16 41 Average Rating 14 | 5 8 10 9 35 On Entrance 8 | . 7 9 14 14 Avg Prop Armor Cover (%) 5 | . . 4 4 10 Naked Turns . | . . . . . Heaviest Build 34 | 15 34 34 33 28 Greatest Support 50 | 40 40 40 20 50 Greatest Overweight (x) 9 | 1 1 1 9 7 Average Overweight (x) 1 | . . . 2 . Largest Inventory Capacity 15 | 8 15 15 15 10 Average Capacity 13 | 7 13 15 14 10 Most Carried 15 | 1 7 15 15 10 Average Carried 7 | . 4 9 7 8 Final Capacity 15 | 8 15 15 10 10 Final Carried 14 | 1 6 14 10 6 Class Distribution -------------------- 92% | Mutant 7% | Infiltrator-Mutant Dominant Class ---------------- Mutant | -10/Materials Mutant | -10/Subcaves Mutant | -8/Scraptown Mutant | -6/Factory Resources | -11 -10 -10 -8 -6 ----------- Run | Yrd Mat Sub Scr Fac Matter Collected 1070 | 270 248 276 159 117 Remotely . | . . . . . Salvage Created 1225 | 98 404 182 . 541 Parts 68 | 3 20 13 . 32 Haulers Intercepted 3 | . 2 . . 1 Recyclers Shooed 1 | 1 . . . . Parts Field Recycled . | . . . . . Retrieved Matter . | . . . . . Parts Self-Destructed 8 | . . 8 . . Prevented . | . . . . . Parts Restored . | . . . . . Kills | -11 -10 -10 -8 -6 ------- Run | Yrd Mat Sub Scr Fac Combat Hostiles Destroyed 30 | . 8 5 . 17 Melee 2 | . . . . 2 Guns 11 | . 8 3 . . AOE 17 | . . 2 . 15 Classes Destroyed 13 | 2 4 2 . 5 Worker 1 | . . . . 1 Builder 1 | . . . . 1 Tunneler 1 | 1 . . . . Hauler 3 | . 2 . . 1 Recycler 1 | 1 . . . . Watcher 4 | . 3 . . 1 Swarmer 7 | . 3 . . 4 Grunt 14 | . 5 . . 9 Sentry 1 | . . . . 1 Hunter 2 | . . . . 2 Programmer 1 | . . . . 1 Artisan 1 | . . 1 . . Subdweller 5 | . . 5 . . Best Kill Streak 9 | 1 3 2 . 9 Combat Bots Only 6 | . 3 2 . 6 Max Kills in Single Turn 3 | 1 1 1 . 3 Gunslinging . | . . . . . Exploded 3 | . . 1 . 3 Melee 1 | . . . . 1 Uniques/NPCs Destroyed . | . . . . . Combat | -11 -10 -10 -8 -6 -------- Run | Yrd Mat Sub Scr Fac Hostile Shots Fired 186 | . 29 38 . 119 Missed 37 | . 3 5 . 29 Hits 149 | . 26 33 . 90 Projectile 149 | . 26 33 . 90 Critical Strikes 6 | . . 2 . 4 Damage Taken 2319 | . 262 829 . 1228 Core 374 | . 41 140 . 193 Absorbed by Shields . | . . . . . Core Remaining (%) 63 | 100 . . 27 . Volleys Fired 89 | 6 27 38 . 18 Largest 2 | 2 2 2 . 1 Hottest 100 | 100 100 53 . 33 Shots Fired 153 | 12 54 69 . 18 Gun 131 | 12 54 65 . . Cannon . | . . . . . Launcher 22 | . . 4 . 18 Special . | . . . . . Kinetic 111 | . 46 65 . . Thermal 20 | 12 8 . . . Explosive 22 | . . 4 . 18 Electromagnetic . | . . . . . Robot Hit Streak 20 | 5 20 18 . 6 Robot Miss Streak 3 | 1 3 2 . 1 Penetration Max . | . . . . . Secondary Targets . | . . . . . Shots Hit Robots 117 | 9 40 41 . 27 Core Hits 85 | 3 19 12 . 51 Critical Kills . | . . . . . Critical Parts Destroyed . | . . . . . Critical Strikes 5 | 1 2 1 . 1 Burn 3 | 1 2 . . . Destroy 1 | . . 1 . . Sever 1 | . . . . 1 Melee Attacks 27 | . . . . 27 Impact . | . . . . . Slashing 27 | . . . . 27 Piercing . | . . . . . Sneak Attacks 3 | . . . . 3 Combat Hostiles . | . . . . . Follow-up Attacks . | . . . . . Damage Inflicted 4557 | 114 592 769 . 3082 Guns 1275 | 114 592 569 . . Cannons . | . . . . . Explosions 2701 | . . 200 . 2501 Melee 581 | . . . . 581 Ramming . | . . . . . Kinetic 1086 | . 517 569 . . Thermal 189 | 114 75 . . . Explosive 2701 | . . 200 . 2501 Electromagnetic . | . . . . . Impact . | . . . . . Slashing 581 | . . . . 581 Piercing . | . . . . . Highest Corruption 8 | . . . . 8 Average Corruption 5 | . . . . 5 Corruption Purged . | . . . . . Corruption Blocked . | . . . . . Effects 17 | . . . . 17 Message Errors 4 | . . . . 4 Matter Fused 2 | . . . . 2 Heat Flow Errors 2 | . . . . 2 Energy Discharges 3 | . . . . 3 Parts Rejected 2 | . . . . 2 Data Loss (minor) 2 | . . . . 2 Data Loss (major) 2 | . . . . 2 Overload Shots . | . . . . . Overflow Damage 123 | . . . . 123 Projectiles . | . . . . . Explosions 78 | . . . . 78 Melee 45 | . . . . 45 Knockbacks . | . . . . . Impact . | . . . . . Kinetic . | . . . . . Secondary . | . . . . . Self-Inflicted Damage 56 | . . 43 . 13 Shots 3 | . . 2 . 1 Rammed . | . . . . . Targets Rammed . | . . . . . Kicked . | . . . . . Crushed . | . . . . . Highest Temperature 254 | 156 39 . . 254 Average Temperature 47 | 66 12 . . 83 Received Heat Transfer 768 | . 117 198 . 453 Siege Activations . | . . . . . Martial Activations . | . . . . . Shielding Activations . | . . . . . Robots Disrupted . | . . . . . Combat Hostiles . | . . . . . Robots Corrupted . | . . . . . Combat Hostiles . | . . . . . Parts Fried . | . . . . . Impact Corruptions . | . . . . . Robots Melted . | . . . . . Combat Hostiles . | . . . . . Parts Melted . | . . . . . Heat Transferred 777 | 407 370 . . . Parts Sabotaged . | . . . . . Parts Stolen . | . . . . . Parts Stripped . | . . . . . Power Chain Reactions . | . . . . . Alert | -11 -10 -10 -8 -6 ------- Run | Yrd Mat Sub Scr Fac Maximum Alert Level . | . . . . . Low Security (%) 100 | 100 100 . . 100 Level 1 . | . . . . . Level 2 . | . . . . . Level 3 . | . . . . . Level 4 . | . . . . . Level 5 . | . . . . . High Security . | . . . . . Max Security . | . . . . . Peak Influence 160 | 5 87 . . 160 Initial . | . . . . . Average 48 | . 27 . . 72 Influence Increases 883 | 10 312 . . 561 Destroy 0b10 Robot/C 500 | . 160 . . 340 Destroy 0b10 Robot/NC 55 | 10 25 . . 20 Destroy Leader 114 | . 40 . . 74 Successful Hack 60 | . 41 . . 19 Disable Machine 45 | . 15 . . 30 Destroy Structure 64 | . 1 . . 63 Partial Spotted 15 | . 15 . . . Lose Combat Pursuer 30 | . 15 . . 15 Influence Decreases 774 | 10 282 30 . 452 Entered New Map 15 | . . 15 . . Time Decay 649 | 10 272 15 . 352 Lost Part 100 | . . . . 100 Lost Ally 10 | . 10 . . . Squads Dispatched 10 | . 2 . . 8 Investigation 3 | . 1 . . 2 Extermination 2 | . . . . 2 Reinforcement 4 | . 1 . . 3 Assault . | . . . . . Garrison 1 | . . . . 1 Intercept . | . . . . . Searches Triggered . | . . . . . Construction Impeded 1 | . . . . 1 Haulers Reinforced 1 | . . . . 1 Active Scanning Responses . | . . . . . Cargo Convoy Interrupts . | . . . . . Stealth | -11 -10 -10 -8 -6 --------- Run | Yrd Mat Sub Scr Fac Distress Signals 5 | . . . . 5 Communications Jammed . | . . . . . Distress Signals . | . . . . . Times Spotted 58 | . 15 5 . 38 Peak Tracking Total 7 | . 3 2 . 7 Tactical Retreats 7 | . 1 . . 6 ECM-based Alert Blocks 10 | . . . . 10 Traps | -11 -10 -10 -8 -6 ------- Run | Yrd Mat Sub Scr Fac Traps Triggered 5 | . 1 2 . 2 Indirectly . | . . . . . Trap Hack Attempts . | . . . . . Triggered . | . . . . . Disarmed . | . . . . . Reprogrammed . | . . . . . Reused . | . . . . . Traps Extracted . | . . . . . Installed . | . . . . . Triggered . | . . . . . Machines | -11 -10 -10 -8 -6 ---------- Run | Yrd Mat Sub Scr Fac Machines Disabled 4 | . 1 1 . 2 Max in Single Turn 2 | . 1 1 . 2 Machines Repaired . | . . . . . Machines Dismantled . | . . . . . Machines Sabotaged . | . . . . . Overloaded Fab Kills . | . . . . . Hacking | -11 -10 -10 -8 -6 --------- Run | Yrd Mat Sub Scr Fac Machines Accessed 22 | . 7 2 3 10 Terminals 11 | . 6 . . 5 Fabricators 1 | . . . . 1 Repair Stations . | . . . . . Recycling Units 3 | . 1 . . 2 Scanalyzers 2 | . . . . 2 Garrison Access . | . . . . . Total Hacks 67 | . 17 12 11 27 Successful 45 | . 9 12 11 13 Failed 21 | . 8 . . 13 Catastrophic 4 | . 1 . . 3 Database Lockouts 1 | . . . . 1 Manual 30 | . 16 . . 14 Terminals 24 | . 15 . . 9 Fabricators 1 | . . . . 1 Repair Stations . | . . . . . Recycling Units 7 | . 2 . . 5 Scanalyzers 12 | . . . . 12 Garrison Access . | . . . . . Terminal Hacks 24 | . 1 12 11 . Record 15 | . . 11 4 . Robot Analysis 7 | . 1 . 6 . Proto ID Catalog 2 | . . 1 1 . Fabricator Hacks . | . . . . . Repair Station Hacks . | . . . . . Recycling Unit Hacks 1 | . 1 . . . Report Inventory 1 | . 1 . . . Scanalyzer 10 | . . . . 10 Insert Component 5 | . . . . 5 Analyze 4 | . . . . 4 Retrieve Study 1 | . . . . 1 Garrison Access Hacks . | . . . . . Unauthorized Hacks 10 | . 7 . . 3 Terminals 8 | . 7 . . 1 Assimilate 1 | . 1 . . . Botnet 2 | . 1 . . 1 Skim 5 | . 5 . . . Fabricators . | . . . . . Repair Stations . | . . . . . Recycling Units 2 | . . . . 2 Fedlink 2 | . . . . 2 Scanalyzers . | . . . . . Garrison Access . | . . . . . Data Cores Recovered 1 | . 1 . . . Used . | . . . . . Hacking Detections 16 | . 7 . . 9 Full Trace Events . | . . . . . Feedback Events . | . . . . . Feedback Blocked . | . . . . . Robot Schematics Acquired . | . . . . . Robots Built . | . . . . . Authchips . | . . . . . Time . | . . . . . Total Robot Build Rating . | . . . . . Part Schematics Acquired 4 | . . . . 4 Parts Built . | . . . . . Authchips . | . . . . . Time . | . . . . . Total Part Build Rating . | . . . . . Part Studies Acquired 1 | . . . . 1 Parts Repaired . | . . . . . Time . | . . . . . Parts Recycled . | . . . . . Recycled Matter . | . . . . . Retrieved Matter . | . . . . . Retrieved Components . | . . . . . Parts Scanalyzed 4 | . . . . 4 Part Schematics Acquired 4 | . . . . 4 Parts Damaged 1 | . . . . 1 Bothacking | -11 -10 -10 -8 -6 ------------ Run | Yrd Mat Sub Scr Fac Used RIF Installer . | . . . . . Robots Hacked . | . . . . . Non-combat . | . . . . . Combat . | . . . . . Robot Hacks Applied . | . . . . . Relay Couplers Released . | . . . . . Fabnet Peak Effective % . | . . . . . Robots Rewired . | . . . . . Allies Hacked . | . . . . . Hacks Repelled . | . . . . . Allies | -11 -10 -10 -8 -6 -------- Run | Yrd Mat Sub Scr Fac Total Allies 1 | . 1 . . . Largest Group 1 | . 1 . . . Highest-Rated Group 10 | . 10 . . . Highest-Rated Ally 10 | . 10 . . . Initial UFD Resources 24 | . . . . 24 Total Orders . | . . . . . Ally Attacks . | . . . . . Total Damage . | . . . . . Kills . | . . . . . Allies Corrupted . | . . . . . Allies Melted . | . . . . . Intel | -11 -10 -10 -8 -6 ------- Run | Yrd Mat Sub Scr Fac Active Infowar (turns) 4996 | 27 854 931 2145 1039 Sensors 1000 | . . . . 1000 Seismic 4959 | 27 854 931 2143 1004 Jamming 261 | . . . . 261 ECM 218 | . . . 2 216 Robot Analysis Total 7 | . 1 . 6 . Derelict Logs Recovered 6 | . . 1 5 . Drone Launches . | . . . . . Drone Recoveries . | . . . . . Exploration | -11 -10 -10 -8 -6 ------------- Run | Yrd Mat Sub Scr Fac Turns Passed 5449 | 125 975 1048 2160 1141 Spaces Moved 3104 | 63 523 596 1259 663 Core 192 | 5 . . 167 20 Treads 1360 | 58 523 418 . 361 Legs . | . . . . . Wheels 1552 | . . 178 1092 282 Hover . | . . . . . Flight . | . . . . . Fastest Speed 50 | 50 160 120 105 105 Average Speed 158 | 153 160 148 168 147 Slowest Speed 500 | 160 240 160 500 400 Overloaded Moves . | . . . . . Propulsion Burnouts . | . . . . . Robots Hopped . | . . . . . Potential Cave-ins . | . . . . . Cave-ins Triggered . | . . . . . Exploration Rate (%) 46 | 4 77 41 86 25 Regions Visited 4 Branch Regions 2 Pre-discovered Areas 1 | . . . . 1 Known Exits Taken 1 | . 1 . . . Unknown Exits Taken 3 | 1 . 1 1 . Scrap Searched 8 | . . 3 5 . Spaces Dug 12 | . . . . 12 Terrain Destroyed 98 | . . 16 . 82 Melee 12 | . . . . 12 Projectile . | . . . . . AOE 86 | . . 16 . 70 Terrain Rammed . | . . . . . Walls Destroyed . | . . . . . Machines Disabled . | . . . . . Actions | -11 -10 -10 -8 -6 --------- Run | Yrd Mat Sub Scr Fac Total 3456 | 76 608 698 1307 767 Wait 80 | . 31 24 . 25 Move 3100 | 62 522 595 1258 663 Hop . | . . . . . Pick Up 38 | 1 6 16 9 6 Fast Attach 28 | 7 5 . 6 10 Attach 36 | . 5 14 4 13 Detach 27 | . 7 7 9 4 Swap 2 | . 1 . 1 . Drop 29 | . 4 4 20 1 Fire 89 | 6 27 38 . 18 Melee 27 | . . . . 27 Ram . | . . . . . Kick . | . . . . . Crush . | . . . . . Escape Stasis . | . . . . . Rewire . | . . . . . Trap . | . . . . . Miscellaneous . | . . . . . Route ------- -11/Scrapyard -10/Materials (discovered 5 exits: *Mat x3 / [*Min] / *Sub) -10/Subcaves (discovered 3 exits: Mat / Rec / *Scr) -8/Scraptown (discovered 2 exits: *Fac x2) -6/Factory (discovered 1 exit: *Low) History --------- Turn | Location | Event 5 | -11/Scrapyard | Discovered new exit (range 15) 126 | -11/Scrapyard | Entered Materials 127 | -10/Materials | Met a group of wandering Federalists 318 | -10/Materials | Build established: Mutant 348 | -10/Materials | Discovered new exit (range 4) 401 | -10/Materials | Discovered new exit (range 10) 501 | -10/Materials | Discovered new exit (range 15) 744 | -10/Materials | Discovered new exit (range 6) 950 | -10/Materials | Learned location of 1 exit from Recycling 984 | -10/Materials | Learned location of 1 exit from Storage 1022 | -10/Materials | Identified exit to Materials 1025 | -10/Materials | Learned 4 Subcaves zone layouts 1026 | -10/Materials | Learned Storage security intel 1027 | -10/Materials | Identified exit to Subcaves 1060 | -10/Materials | Loaded intel: 1 repair station location 1101 | -10/Materials | Entered Subcaves 1102 | -10/Subcaves | Continued accompanying wandering Federalists (4) 1102 | -10/Subcaves | Approached by a straggling Scientist 1102 | -10/Subcaves | Identified exit to Materials 1276 | -10/Subcaves | Ambushed by angry Subdweller bent on revenge 1397 | -10/Subcaves | Visited Clippyterm 1401 | -10/Subcaves | Learned Factory stockpile data 1620 | -10/Subcaves | Core integrity fell below 50% 1629 | -10/Subcaves | Lost 3 parts (1n1u1w) 1724 | -10/Subcaves | Shifting Twisted Machinery released Sub. Machine Gun 1746 | -10/Subcaves | Shifting Twisted Machinery released Scrap Shield 1867 | -10/Subcaves | Identified exit to Recycling 1930 | -10/Subcaves | Visited 4L-MR0's lab 1946 | -10/Subcaves | Found Power Bank 2149 | -10/Subcaves | Entered Scraptown 2184 | -8/Scraptown | Heard Great Nut preacher, LISTEN AND RECITE! 2284 | -8/Scraptown | Scanned Subdweller tech in exchange for log data 2287 | -8/Scraptown | Learned location of 1 exit from Research 2289 | -8/Scraptown | Learned Research emergency access door positions 2290 | -8/Scraptown | Learned Factory terminal intel 2291 | -8/Scraptown | Learned Factory stockpile data 2566 | -8/Scraptown | Discovered new exit (range 7) 2764 | -8/Scraptown | Visited Fellowship of the Rings 2788 | -8/Scraptown | Visited Cave Peace 2857 | -8/Scraptown | Visited UFD Registry 2857 | -8/Scraptown | Registered with UFD as "Scrapcoil" 2968 | -8/Scraptown | Visited Comm Corps 3163 | -8/Scraptown | Visited Symbiants 3243 | -8/Scraptown | Visited Assassins FH 3706 | -8/Scraptown | Visited DA-N13 Charitable Foundation 3710 | -8/Scraptown | Found DCF Scrap (31 items) 3761 | -8/Scraptown | Visited Analyses Database 3791 | -8/Scraptown | Visited Science Testing Area 3856 | -8/Scraptown | Visited Abandonware Association 3869 | -8/Scraptown | Learned abandonware demo "TRNCOAT.EXE" 3869 | -8/Scraptown | Learned abandonware demo "KABOOM.EXE" 3900 | -8/Scraptown | Visited Infowarlord's Domain 3910 | -8/Scraptown | Found Exp. Terrain Scan Processor 3952 | -8/Scraptown | Visited Junk Repository 3997 | -8/Scraptown | Visited A0-MCA Data Center 4006 | -8/Scraptown | Given a C+ rating by A0-MCA 4035 | -8/Scraptown | Visited Science Guys 4124 | -8/Scraptown | Delivered Scrap Shield to a Scientist 4248 | -8/Scraptown | Met Optimus 4248 | -8/Scraptown | Accepted into 0bPrime 4303 | -8/Scraptown | Discovered new exit (range 5) 4309 | -8/Scraptown | Entered Factory 4309 | -6/Factory | Evolved 8 slots: Propulsion x2, Utility x6 4311 | -6/Factory | Loaded intel: 26 terminal locations 4483 | -6/Factory | Central database locked down 4703 | -6/Factory | Lost 3 parts (1p1n1u) 4781 | -6/Factory | Build established: Infiltrator-Mutant 4815 | -6/Factory | Discovered new exit (range 4) 4819 | -6/Factory | Identified exit to Lower Caves 5134 | -6/Factory | Loaded intel: 8 recycling unit locations 5145 | -6/Factory | Build established: Mutant 5280 | -6/Factory | Learned location of Protoforge (-2) 5315 | -6/Factory | Garrison activated, responded to threat 5345 | -6/Factory | Lost 3 parts (1p2u) 5450 | -6/Factory | Self-destructed Last Messages --------------- 05353_ K-01 Serf cleans the Fusion Modulator. 05353_ Connecting with Terminal... 05380_ ALERT: Potential suspicious activity detected, Programmers report to Factory Zone 4V. 05383_ System corrupted: Energy discharge (-27). 05391_ Acquired Lrn. Missile Launcher. 05397_ Acquired Melee Analysis Suite. 05406_ System corrupted: Component data lost. 05410_ Connecting with Terminal... 05418_ U-05 Engineer builds a Wall. 05431_ System corrupted: Heat flow error (+285). 05441_ Adv. Sensor Array destroyed. 05443_ G-50 Soldier destroyed. 05445_ Critical hit (Burn: +37). 05447_ U-05 Engineer builds a Door. 05447_ Rocket Launcher destroyed. 05448_ Critical hit (Burn: +37). 05448_ Hrd. Light Armor Plating destroyed. 05449_ U-05 Engineer lays Concrete. Map ----- +----------------------------------------------------+ | ???????????# #?# ! # ?????? | | ???????????# #?# """ """ # ???????? | | ?########### #?# """ """ # ?????????? | | ?# ! ! # #?# """ """ # #??????????? | | ?# # #?# # #??????????? | | ## # #?# # ^#??????????? | | ## """ ?# """ """ + +??????????? | | ## """ ?# """T""" # #??????????? | | ?# " " """ ?##+########### #??????????? | | ?# "Y" * ??????????????# #??????????? | | ?# """ *% ??????????????# #??????????? | | ######### #*[! %#### ########### #??????????? | | % #??????????? | | ^ #??????????? | | % +??????????? | | % ? #??????????? | | ?" """" "" #??????????? | | " ??" """" "" ## ###############????? | | """ ??" """" "" # g # #????? | | G ??? """ " "" # = """"" # #????? | | """ ???? """" "" uu%g ""T"" # ! +????? | | " ???? ???? """ " #gg # ! #????? | | ???????? # # !#????? | | ? ???????? ########????? | | ??????????#####+#######?# """ """ #???????????? | | ???????????????????"""??#@ """ """ #???????????? | | ???????????????????"T"??# """ """ *#???????????? | | ????????????????????????# "" "" #???????????? | | ????????????????????????# "" "" #???????????? | | ????????????????????????# #???????????? | | ????????????????????????#####+########???????????? | | ?????????????????????????????????????????????????? | | ?????????????????????????????????????????????????? | | ?????????????????????????????????????????????????? | | ?????????????????????????????????????????????????? | | ?????????????????????????????????????????????????? | | ?????????????????????????????????????????????????? | | ?????????????????????????????????!????[??????????? | | ?????????????????????????????????????????????????? | | ?????????????????????????????????????????????????? | | ?????????????????????????????????????????????????? | | ?????????????????????????????????????????????????? | | ?????????????????????????????????????????????????? | | ?????????????????????????????????????????????????? | | ?????????????????????????????????????????????????? | | ?????????????????????????????????????????????????? | | ?????????????????????????????????????????????????? | | ?????????????????????????????????????????????????? | | ?????????????????????????????????????????????????? | | ?????????????????????????????????????????????????? | +----------------------------------------------------+ Best States ------------- Heat Dissipation 37 Energy Generation 15 Energy Capacity 250 Matter Stores 300 Matter Capacity 300 Sight Range 16 Robot Scan Range 16 Terrain Scan Density 10 ECM Strength 1 Jamming Range 12 Armor Coverage 150 Evasion (%) 40 Melee Accuracy 13 Core Analysis 6 Recoil Reduction 2 Item Schematics ----------------- Cesium-ion Thruster | -6/Factory | Scanalyzed Hrd. Light Armor Plating | -6/Factory | Scanalyzed Adv. Sensor Array | -6/Factory | Scanalyzed Lgt. Nuclear Core | -6/Factory | Scanalyzed Robot Schematics ------------------ None Fabricated ------------ Nothing Repaired ---------- Nothing Studied --------- Cesium-ion Thruster | -6/Factory | Hacked Alien Tech Used ----------------- None Achievements -------------- None Challenges ------------ None Game ------ Seed ComponentPitchforkStripper Manual? 0 Play Time 00:36:01 Cumulative 66.5 hours Start 2026.07.16 @ 20:36:06 End 2026.07.16 @ 21:10:15 Sessions 1 Manual Loads 0 Difficulty Rogue Special Mode None Game No. 72 Rogue 72 Adventurer 0 Explorer 0 Win Type - Total 1 Types 1/0/0/0/0/0/0/0/0/0 Lore% 54 Gallery% 42 Achievement% 38 Wizard Run 0 Options --------- Layout 1 ASCII 0 Keyboard 1 Movement Numpad Keybinds 1 Fullscreen 2 Font 24/Smallcaps Map View 50x40 Zoom Use 0% Tactical HUD 1 Map Filters NONE Filters NONE Steam 1 RUN: d9be96fd-5e5d-439a-85a8-3ab431a05106